[Event "AUT-ch 2018"]
[Site "Vienna"]
[Date "2018.07.27"]
[Round "7"]
[White "Jedinger, Andreas"]
[Black "Goessler, Markus"]
[Result "1-0"]
[ECO "C87"]
[WhiteElo "2090"]
[BlackElo "2190"]
[Annotator "NA"]
[PlyCount "131"]
[EventDate "2018.07.22"]
[EventType "swiss"]
[EventCountry "AUT"]
[SourceTitle "playchess.com"]
[Source "ChessBase"]
[SourceQuality "1"]
[TimeControl "40/5400+30:1800+30"]

1. e4 {[%emt 0:00:00]} e5 {[%emt 0:00:05]} 2. Nf3 {[%emt 0:00:00]} Nc6 {[%emt 0:00:06]} 3. Bb5 {[%emt 0:00:00]} a6 {[%emt 0:00:05]} 4. Ba4 {[%emt 0:00:00]} Nf6 {[%emt 0:00:08]} 5. O-O {[%emt 0:00:00]} Be7 {[%emt 0:00:13]} 6. Re1 {[%emt 0:00:00]} d6 {[%emt 0:00:10]} 7. c3 {[%emt 0:00:05]} Bg4 {[%emt 0:00:34]} 8. h3 {[%emt 0:00:27]} Bh5 {[%emt 0:00:18]} 9. d3 {[%emt 0:00:20]} O-O {[%emt 0:02:16]} 10. Nbd2 {[%emt 0:00:05]} Nd7 {[%emt 0:00:16]} 11. Nf1 {[%emt 0:00:13]} Nc5 {[%emt 0:00:09]} 12. Bc2 {[%emt 0:00:09]} Ne6 {[%emt 0:01:02]} 13. Ng3 {[%emt 0:00:17]} Bxf3 {[%emt 0:02:01]} 14. Qxf3 {[%emt 0:00:08]} Bg5 {[%emt 0:00:32]} 15. Be3 {[%emt 0:02:00]} g6 {[%emt 0:01:05]} 16. Rad1 {[%emt 0:01:26]} Bxe3 {[%emt 0:07:26]} 17. Qxe3 {[%emt 0:04:33]} Qg5 {[%emt 0:08:01]} 18. Qxg5 {[%emt 0:02:51]} Nxg5 {[%emt 0:00:03]} 19. d4 {[%emt 0:00:26]} h5 {[%emt 0:03:51]} 20. h4 {[%emt 0:03:25]} Nh7 {[%emt 0:00:24]} 21. Nf1 {[%emt 0:00:43]} Kg7 {[%emt 0:45:35]} 22. Ne3 {[%emt 0:00:43]} Rac8 {[%emt 0:03:28]} 23. a3 {[%emt 0:03:04]} Nf6 {[%emt 0:02:31]} 24. f3 {[%emt 0:01:38]} Nb8 {[%emt 0:03:26]} 25. Bb3 {[%emt 0:16:28]} Nbd7 {[%emt 0:00:30]} 26. Nc4 {[%emt 0:03:58]} Rfe8 {[%emt 0:01:24]} 27. Ba2 {[%emt 0:01:54]} Nf8 {[%emt 0:02:02]} 28. b4 {[%emt 0:02:00]} N6d7 {[%emt 0:01:38]} 29. Na5 {[%emt 0:05:08]} Rb8 {[%emt 0:02:07]} 30. Bd5 {[%emt 0:01:25]} c6 {[%emt 0:02:11]} 31. Bb3 {[%emt 0:01:07]} Nb6 {[%emt 0:04:34]} 32. dxe5 {[%emt 0:01:43]} dxe5 {[%emt 0:00:32]} 33. Rd6 {[%emt 0:01:04]} Na8 {[%emt 0:02:13]} 34. Red1 {[%emt 0:01:43]} Nc7 {[%emt 0:00:44]} 35. a4 {[%emt 0:01:30]} Re7 {[%emt 0:01:15]} 36. Rd8 {[%emt 0:01:11]} Re8 {[%emt 0:00:31]} 37. Rxb8 {[%emt 0:07:42]} Rxb8 {[%emt 0:00:01]} 38. Kf2 {[%emt 0:01:12]} Ne8 {[%emt 0:02:00]} 39. Ke3 {[%emt 0:00:48]} Kf6 {[%emt 0:02:08]} 40. g3 {[%emt 0:00:37]} Ke7 {[%emt 0:31:27]} 41. f4 {[%emt 0:33:32]} f6 {[%emt 0:00:00]} 42. Bc4 {[%emt 0:00:00]} Nc7 {[%emt 0:00:00]} 43. Rf1 {[%emt 0:00:00]} Nfe6 {[%emt 0:00:00]} 44. Be2 {[%emt 0:00:00]} Ng7 {[%emt 0:00:00]} 45. fxe5 {[%emt 0:00:00]} f5 {[%emt 0:00:00]} 46. Bc4 {[%emt 0:00:00]} Nce6 {[%emt 0:00:00]} 47. Bxa6 {[%emt 0:00:00]} Nd8 {[%emt 0:00:00]} 48. Bd3 {[%emt 0:00:00]} Ke6 {[%emt 0:00:00]} 49. Kf4 {[%emt 0:00:00]} b6 {[%emt 0:00:00]} 50. Nb3 {[%emt 0:00:00]} fxe4 {[%emt 0:00:22]} 51. Bxe4 {[%emt 0:00:00]} Ra8 {[%emt 0:01:25]} 52. Nd4+ {[%emt 0:00:00]} Ke7 {[%emt 0:00:51]} 53. Bxg6 {[%emt 0:00:00]} c5 {[%emt 0:00:52]} 54. Nf5+ {[%emt 0:00:00]} Nxf5 {[%emt 0:00:15]} 55. Bxf5 {[%emt 0:00:00]} cxb4 {[%emt 0:00:16]} 56. cxb4 {[%emt 0:00:00]} Rxa4 {[%emt 0:00:29]} 57. Rb1 {[%emt 0:00:22]} Ra3 {[%emt 0:00:13]} 58. Rd1 {[%emt 0:00:52]} Rb3 {[%emt 0:01:10]} 59. Rd7+ {[%emt 0:00:16]} Ke8 {[%emt 0:00:02]} 60. Rd4 {[%emt 0:00:19]} Ke7 {[%emt 0:00:31]} 61. Rd7+ {[%emt 0:13:08]} Ke8 {[%emt 0:00:00]} 62. e6 {[%emt 0:00:12]} Rxb4+ {[%emt 0:02:13]} 63. Kg5 {[%emt 0:00:06]} Rb5 {[%emt 0:00:14]} 64. Kf6 {[%emt 0:00:10]} Nc6 {[%emt 0:00:42]} 65. Bg6+ {[%emt 0:00:23]} Kf8 {[%emt 0:00:10]} 66. Rd8+ {[%emt 0:00:44]} 1-0

[Event "AUT-ch 2018"]
[Site "Vienna"]
[Date "2018.07.27"]
[Round "7"]
[White "Hatzl, Johannes"]
[Black "Sadilek, Peter"]
[Result "0-1"]
[ECO "B09"]
[WhiteElo "2068"]
[BlackElo "2268"]
[Annotator "NA"]
[PlyCount "52"]
[EventDate "2018.07.22"]
[EventType "swiss"]
[EventCountry "AUT"]
[SourceTitle "playchess.com"]
[Source "ChessBase"]
[SourceQuality "1"]
[TimeControl "40/5400+30:1800+30"]

1. e4 {[%emt 0:00:00]} g6 {[%emt 0:00:49]} 2. d4 {[%emt 0:00:00]} Bg7 {[%emt 0:00:19]} 3. Nc3 {[%emt 0:01:03]} d6 {[%emt 0:01:30]} 4. f4 {[%emt 0:01:31]} Nf6 {[%emt 0:03:31]} 5. Nf3 {[%emt 0:01:03]} O-O {[%emt 0:00:18]} 6. e5 {[%emt 0:02:01]} dxe5 {[%emt 0:01:11]} 7. fxe5 {[%emt 0:04:18]} Nd5 {[%emt 0:02:16]} 8. Bc4 {[%emt 0:00:32]} Be6 {[%emt 0:06:19]} 9. Nxd5 {[%emt 0:06:29]} Bxd5 {[%emt 0:04:04]} 10. Bxd5 {[%emt 0:00:29]} Qxd5 {[%emt 0:00:09]} 11. Qe2 {[%emt 0:01:33]} c5 {[%emt 0:01:36]} 12. c4 {[%emt 0:02:55]} Qd7 {[%emt 0:00:09]} 13. d5 {[%emt 0:05:22]} e6 {[%emt 0:00:19]} 14. d6 {[%emt 0:01:02]} f6 {[%emt 0:00:29]} 15. Bf4 {[%emt 0:06:25]} Nc6 {[%emt 0:12:38]} 16. O-O {[%emt 0:15:43]} fxe5 {[%emt 0:16:03]} 17. Nxe5 {[%emt 0:01:04]} Qxd6 {[%emt 0:00:21]} 18. Nxg6 {[%emt 0:04:14]} Qd4+ {[%emt 0:04:44]} 19. Be3 {[%emt 0:04:25]} Rxf1+ {[%emt 0:00:34]} 20. Rxf1 {[%emt 0:00:02]} Qe4 {[%emt 0:01:55]} 21. Nf4 {[%emt 0:00:47]} Rf8 {[%emt 0:25:42]} 22. b3 {[%emt 0:12:34]} Nd4 {[%emt 0:03:37]} 23. Qd2 {[%emt 0:00:24]} Nc2 {[%emt 0:09:59]} 24. Bxc5 {[%emt 0:06:22]} Bd4+ {[%emt 0:00:07]} 25. Bxd4 {[%emt 0:00:43]} Nxd4 {[%emt 0:00:04]} 26. Qf2 {[%emt 0:08:52]} Qxf4 {[%emt 0:02:14]} 0-1

[Event "AUT-ch 2018"]
[Site "Vienna"]
[Date "2018.07.27"]
[Round "7"]
[White "Gutmann, Alois"]
[Black "Schmidlechner, Alexander"]
[Result "1/2-1/2"]
[ECO "A00"]
[WhiteElo "2062"]
[BlackElo "2226"]
[Annotator "NA"]
[PlyCount "79"]
[EventDate "2018.07.22"]
[EventType "swiss"]
[EventCountry "AUT"]
[SourceTitle "playchess.com"]
[Source "ChessBase"]
[SourceQuality "1"]
[TimeControl "40/5400+30:1800+30"]

1. Nc3 {[%emt 0:00:00]} d5 {[%emt 0:00:08]} 2. e4 {[%emt 0:00:00]} d4 {[%emt 0:00:12]} 3. Nce2 {[%emt 0:00:00]} c5 {[%emt 0:00:09]} 4. Nf3 {[%emt 0:00:08]} Nc6 {[%emt 0:00:15]} 5. Ng3 {[%emt 0:00:22]} Nf6 {[%emt 0:00:15]} 6. Bb5 {[%emt 0:03:36]} Bd7 {[%emt 0:00:15]} 7. a4 {[%emt 0:06:55]} e6 {[%emt 0:01:23]} 8. c3 {[%emt 0:05:28]} Be7 {[%emt 0:05:47]} 9. Qc2 {[%emt 0:01:09]} h5 {[%emt 0:02:07]} 10. h4 {[%emt 0:01:23]} Rc8 {[%emt 0:01:46]} 11. d3 {[%emt 0:04:39]} a6 {[%emt 0:02:32]} 12. Bc4 {[%emt 0:01:34]} Ng4 {[%emt 0:01:37]} 13. Bg5 {[%emt 0:04:38]} Nge5 {[%emt 0:01:12]} 14. Nxe5 {[%emt 0:06:46]} Nxe5 {[%emt 0:02:59]} 15. Bxe7 {[%emt 0:00:37]} Qxe7 {[%emt 0:00:11]} 16. Qd2 {[%emt 0:06:35]} Nxc4 {[%emt 0:31:05]} 17. dxc4 {[%emt 0:00:25]} e5 {[%emt 0:00:29]} 18. a5 {[%emt 0:03:29]} g6 {[%emt 0:01:51]} 19. Ne2 {[%emt 0:04:54]} Bc6 {[%emt 0:02:21]} 20. f3 {[%emt 0:02:00]} Kf8 {[%emt 0:07:11]} 21. Nc1 {[%emt 0:08:01]} Kg7 {[%emt 0:02:28]} 22. Nd3 {[%emt 0:00:46]} f5 {[%emt 0:01:25]} 23. exf5 {[%emt 0:14:24]} e4 {[%emt 0:03:06]} 24. f6+ {[%emt 0:00:23]} Qxf6 {[%emt 0:00:23]} 25. fxe4 {[%emt 0:01:55]} Bxe4 {[%emt 0:01:13]} 26. O-O-O {[%emt 0:01:35]} Rhd8 {[%emt 0:04:40]} 27. Nf4 {[%emt 0:05:37]} dxc3 {[%emt 0:02:25]} 28. Qxc3 {[%emt 0:00:56]} Qxc3+ {[%emt 0:10:37]} 29. bxc3 {[%emt 0:00:13]} Rxd1+ {[%emt 0:00:58]} 30. Rxd1 {[%emt 0:00:15]} Kf6 {[%emt 0:00:16]} 31. Rd7 {[%emt 0:01:50]} Kf5 {[%emt 0:04:20]} 32. Nd5 {[%emt 0:04:47]} Bxd5 {[%emt 0:02:45]} 33. cxd5 {[%emt 0:02:14]} Ke5 {[%emt 0:00:45]} 34. Rxb7 {[%emt 0:01:02]} Kxd5 {[%emt 0:00:25]} 35. Rd7+ {[%emt 0:01:26]} Kc6 {[%emt 0:01:13]} 36. Rg7 {[%emt 0:00:29]} Kb5 {[%emt 0:00:52]} 37. Rxg6 {[%emt 0:00:22]} Kc4 {[%emt 0:00:36]} 38. Rg5 {[%emt 0:02:41]} Rf8 {[%emt 0:00:30]} 39. Kd1 {[%emt 0:02:11]} Rf2 {[%emt 0:03:23]} 40. Ke1 {[%emt 0:02:07]} 1/2-1/2

[Event "AUT-ch 2018"]
[Site "Vienna"]
[Date "2018.07.27"]
[Round "7"]
[White "Mira, Helene"]
[Black "Kordzadze, Nino"]
[Result "1/2-1/2"]
[ECO "A96"]
[WhiteElo "1966"]
[BlackElo "2097"]
[Annotator "NA"]
[PlyCount "121"]
[EventDate "2018.07.22"]
[EventType "swiss"]
[EventCountry "AUT"]
[SourceTitle "playchess.com"]
[Source "ChessBase"]
[SourceQuality "1"]
[TimeControl "40/5400+30:1800+30"]

1. d4 {[%emt 0:00:00]} f5 {[%emt 0:00:06]} 2. g3 {[%emt 0:00:40]} e6 {[%emt 0:00:13]} 3. Bg2 {[%emt 0:00:08]} Nf6 {[%emt 0:00:09]} 4. Nf3 {[%emt 0:00:07]} Be7 {[%emt 0:00:17]} 5. O-O {[%emt 0:00:12]} O-O {[%emt 0:00:14]} 6. c4 {[%emt 0:00:09]} d6 {[%emt 0:00:24]} 7. Nc3 {[%emt 0:00:26]} a5 {[%emt 0:00:17]} 8. Qd3 {[%emt 0:02:05]} Nc6 {[%emt 0:02:11]} 9. e4 {[%emt 0:00:12]} e5 {[%emt 0:06:09]} 10. dxe5 {[%emt 0:02:17]} dxe5 {[%emt 0:04:30]} 11. Qxd8 {[%emt 0:03:36]} Rxd8 {[%emt 0:03:57]} 12. Nd5 {[%emt 0:00:59]} Bd6 {[%emt 0:03:41]} 13. Bg5 {[%emt 0:07:28]} Rf8 {[%emt 0:07:53]} 14. Bxf6 {[%emt 0:13:03]} gxf6 {[%emt 0:02:31]} 15. exf5 {[%emt 0:04:38]} Bxf5 {[%emt 0:00:36]} 16. Nh4 {[%emt 0:00:32]} Bd3 {[%emt 0:03:44]} 17. Rfc1 {[%emt 0:00:11]} e4 {[%emt 0:01:13]} 18. Nf5 {[%emt 0:05:16]} Be5 {[%emt 0:01:27]} 19. Nc3 {[%emt 0:00:54]} Rad8 {[%emt 0:07:01]} 20. Rd1 {[%emt 0:09:11]} Bxc3 {[%emt 0:02:22]} 21. bxc3 {[%emt 0:00:09]} Ne5 {[%emt 0:02:05]} 22. c5 {[%emt 0:00:29]} Rfe8 {[%emt 0:12:21]} 23. Ne3 {[%emt 0:04:50]} Nd7 {[%emt 0:06:24]} 24. Nd5 {[%emt 0:15:22]} c6 {[%emt 0:00:42]} 25. Nf4 {[%emt 0:00:41]} Nxc5 {[%emt 0:00:18]} 26. Rd2 {[%emt 0:04:44]} Na4 {[%emt 0:11:00]} 27. Rc1 {[%emt 0:00:22]} c5 {[%emt 0:07:14]} 28. c4 {[%emt 0:04:47]} Rd4 {[%emt 0:06:34]} 29. Nd5 {[%emt 0:00:52]} Kf7 {[%emt 0:01:12]} 30. Ne3 {[%emt 0:00:35]} Nb6 {[%emt 0:01:08]} 31. Rb2 {[%emt 0:00:11]} Nxc4 {[%emt 0:02:57]} 32. Rxb7+ {[%emt 0:00:10]} Kg6 {[%emt 0:00:15]} 33. Rc7 {[%emt 0:06:52]} Re5 {[%emt 0:02:32]} 34. Bf1 {[%emt 0:02:16]} Nxe3 {[%emt 0:01:40]} 35. fxe3 {[%emt 0:00:03]} Rb4 {[%emt 0:00:07]} 36. Bh3 {[%emt 0:05:54]} c4 {[%emt 0:00:10]} 37. Bd7 {[%emt 0:00:02]} Rb2 {[%emt 0:01:13]} 38. a4 {[%emt 0:00:30]} Re2 {[%emt 0:00:27]} 39. Bg4 {[%emt 0:02:34]} Ra2 {[%emt 0:00:37]} 40. Bd7 {[%emt 0:00:32]} Re2 {[%emt 0:30:06]} 41. Bg4 {[%emt 0:32:00]} Rb2 {[%emt 0:00:00]} 42. Bd7 {[%emt 0:00:00]} h5 {[%emt 0:00:00]} 43. Rc6 {[%emt 0:00:00]} Re7 {[%emt 0:00:00]} 44. Be6 {[%emt 0:00:00]} Rb4 {[%emt 0:00:00]} 45. Bxc4 {[%emt 0:00:00]} Rxa4 {[%emt 0:00:00]} 46. Bxd3 {[%emt 0:00:00]} exd3 {[%emt 0:00:00]} 47. Rf1 {[%emt 0:00:00]} Rxe3 {[%emt 0:00:00]} 48. Rcxf6+ {[%emt 0:00:00]} Kg5 {[%emt 0:00:00]} 49. Kg2 {[%emt 0:00:00]} Ra2+ {[%emt 0:00:36]} 50. Kh3 {[%emt 0:00:00]} Re5 {[%emt 0:00:16]} 51. Rd6 {[%emt 0:00:00]} d2 {[%emt 0:01:50]} 52. Rf4 {[%emt 0:00:00]} a4 {[%emt 0:01:53]} 53. Rfd4 {[%emt 0:00:00]} a3 {[%emt 0:00:45]} 54. Rxd2 {[%emt 0:00:00]} Rb2 {[%emt 0:00:25]} 55. Rxb2 {[%emt 0:04:49]} axb2 {[%emt 0:00:07]} 56. Rb6 {[%emt 0:00:01]} Re2 {[%emt 0:00:15]} 57. Rb5+ {[%emt 0:00:05]} Kf6 {[%emt 0:00:08]} 58. g4 {[%emt 0:00:07]} hxg4+ {[%emt 0:01:05]} 59. Kxg4 {[%emt 0:00:12]} Rxh2 {[%emt 0:00:07]} 60. Kf3 {[%emt 0:00:21]} Ke6 {[%emt 0:01:12]} 61. Ke3 {[%emt 0:00:03]} 1/2-1/2

[Event "AUT-ch 2018"]
[Site "Vienna"]
[Date "2018.07.28"]
[Round "8"]
[White "Schreiner, Peter"]
[Black "Morgunov, Marc"]
[Result "1/2-1/2"]
[ECO "E62"]
[WhiteElo "2467"]
[BlackElo "2362"]
[Annotator "RC"]
[PlyCount "61"]
[EventDate "2018.07.22"]
[EventType "swiss"]
[EventCountry "AUT"]
[SourceTitle "playchess.com"]
[Source "ChessBase"]
[SourceQuality "1"]
[TimeControl "40/5400+30:1800+30"]

1. Nf3 {[%emt 0:00:00]} Nf6 {[%emt 0:00:34]} 2. g3 {[%emt 0:00:00]} g6 {[%emt 0:00:57]} 3. Bg2 {[%emt 0:00:00]} Bg7 {[%emt 0:00:18]} 4. O-O {[%emt 0:00:37]} O-O {[%emt 0:00:08]} 5. c4 {[%emt 0:00:33]} d6 {[%emt 0:00:14]} 6. d4 {[%emt 0:00:08]} Nc6 {[%emt 0:00:30]} 7. Nc3 {[%emt 0:00:12]} Bf5 {[%emt 0:03:41]} 8. d5 {[%emt 0:12:44]} Na5 {[%emt 0:00:59]} 9. Nd4 {[%emt 0:01:48]} Bd7 {[%emt 0:01:30]} 10. b3 {[%emt 0:02:17]} c5 {[%emt 0:04:52]} 11. dxc6 {[%emt 0:00:35]} bxc6 {[%emt 0:00:09]} 12. Bd2 {[%emt 0:02:31]} c5 {[%emt 0:04:45]} 13. Nf3 {[%emt 0:07:30]} Rb8 {[%emt 0:02:53]} 14. Qc1 {[%emt 0:01:56]} Nc6 {[%emt 0:07:59]} 15. Bh6 {[%emt 0:03:16]} Nd4 {[%emt 0:07:48]} 16. Bxg7 {[%emt 0:05:59]} Kxg7 {[%emt 0:00:37]} 17. Nxd4 {[%emt 0:02:47]} cxd4 {[%emt 0:00:18]} 18. Nd5 {[%emt 0:01:10]} Nxd5 {[%emt 0:05:57]} 19. cxd5 {[%emt 0:00:14]} Rb4 {[%emt 0:04:47]} 20. e3 {[%emt 0:15:33]} Qb6 {[%emt 0:06:39]} 21. exd4 {[%emt 0:00:13]} a5 {[%emt 0:03:36]} 22. Re1 {[%emt 0:04:08]} Re8 {[%emt 0:00:48]} 23. Re4 {[%emt 0:02:15]} Bf5 {[%emt 0:05:12]} 24. Rf4 {[%emt 0:06:11]} a4 {[%emt 0:03:16]} 25. bxa4 {[%emt 0:06:46]} Rxa4 {[%emt 0:00:25]} 26. Be4 {[%emt 0:05:06]} Bxe4 {[%emt 0:03:34]} 27. Rxe4 {[%emt 0:00:10]} Qa7 {[%emt 0:00:53]} 28. Rh4 {[%emt 0:09:41]} h5 {[%emt 0:00:19]} 29. Rxh5 {[%emt 0:01:27]} gxh5 {[%emt 0:00:26]} 30. Qg5+ {[%emt 0:00:07]} Kf8 {[%emt 0:00:12]} 31. Qh6+ {[%emt 0:00:13]} 1/2-1/2

[Event "AUT-ch 2018"]
[Site "Vienna"]
[Date "2018.07.28"]
[Round "8"]
[White "Neubauer, Martin"]
[Black "Bauer, Thomas"]
[Result "1-0"]
[ECO "A48"]
[WhiteElo "2439"]
[BlackElo "2181"]
[Annotator "NA"]
[PlyCount "105"]
[EventDate "2018.07.22"]
[EventType "swiss"]
[EventCountry "AUT"]
[SourceTitle "playchess.com"]
[Source "ChessBase"]
[SourceQuality "1"]
[TimeControl "40/5400+30:1800+30"]

1. d4 {[%emt 0:00:00]} Nf6 {[%emt 0:00:07]} 2. Nf3 {[%emt 0:00:00]} g6 {[%emt 0:00:32]} 3. c4 {[%emt 0:00:00]} Bg7 {[%emt 0:00:19]} 4. Nc3 {[%emt 0:00:00]} O-O {[%emt 0:00:20]} 5. e4 {[%emt 0:00:05]} d6 {[%emt 0:00:04]} 6. h3 {[%emt 0:00:52]} e5 {[%emt 0:04:12]} 7. d5 {[%emt 0:01:45]} Na6 {[%emt 0:01:10]} 8. Be3 {[%emt 0:02:11]} Nh5 {[%emt 0:02:22]} 9. Qc2 {[%emt 0:10:38]} f5 {[%emt 0:05:33]} 10. a3 {[%emt 0:03:01]} Nc5 {[%emt 0:06:10]} 11. Nd2 {[%emt 0:13:09]} Ne6 {[%emt 0:12:14]} 12. dxe6 {[%emt 0:08:45]} f4 {[%emt 0:00:06]} 13. Bxa7 {[%emt 0:00:20]} Rxa7 {[%emt 0:02:38]} 14. c5 {[%emt 0:06:12]} Bxe6 {[%emt 0:07:32]} 15. cxd6 {[%emt 0:04:31]} c6 {[%emt 0:02:57]} 16. Nf3 {[%emt 0:14:08]} Bf6 {[%emt 0:13:39]} 17. Na4 {[%emt 0:07:50]} Qa5+ {[%emt 0:01:48]} 18. Nc3 {[%emt 0:00:02]} b5 {[%emt 0:02:10]} 19. b4 {[%emt 0:01:48]} Qb6 {[%emt 0:04:08]} 20. Be2 {[%emt 0:01:02]} Rd8 {[%emt 0:01:13]} 21. O-O {[%emt 0:00:47]} Ng3 {[%emt 0:02:39]} 22. Rfd1 {[%emt 0:01:22]} Nxe2+ {[%emt 0:02:28]} 23. Nxe2 {[%emt 0:03:58]} Bc4 {[%emt 0:02:21]} 24. Nc1 {[%emt 0:04:35]} Qb8 {[%emt 0:03:10]} 25. Nb3 {[%emt 0:01:53]} Rxd6 {[%emt 0:09:30]} 26. Na5 {[%emt 0:00:26]} Rxd1+ {[%emt 0:05:13]} 27. Rxd1 {[%emt 0:00:26]} Bf7 {[%emt 0:00:56]} 28. Qxc6 {[%emt 0:01:36]} Kg7 {[%emt 0:00:18]} 29. Rd7 {[%emt 0:01:06]} g5 {[%emt 0:02:57]} 30. Rxa7 {[%emt 0:01:03]} Qxa7 {[%emt 0:00:07]} 31. Qxb5 {[%emt 0:00:14]} Qa8 {[%emt 0:01:43]} 32. Qb7 {[%emt 0:07:06]} Qd8 {[%emt 0:00:44]} 33. Nc6 {[%emt 0:00:04]} Qd1+ {[%emt 0:01:01]} 34. Kh2 {[%emt 0:00:04]} Qd6 {[%emt 0:02:40]} 35. b5 {[%emt 0:00:49]} h5 {[%emt 0:00:15]} 36. Qb8 {[%emt 0:02:29]} Qc5 {[%emt 0:01:01]} 37. Ncxe5 g4 {[%emt 0:00:28]} 38. Nxf7 {[%emt 0:03:02]} Qxf2 {[%emt 0:01:45]} 39. Qh8+ {[%emt 0:00:38]} Kxf7 {[%emt 0:00:47]} 40. Qxh5+ {[%emt 0:00:03]} Ke7 {[%emt 0:30:32]} 41. Qxg4 {[%emt 0:30:08]} Qe3 {[%emt 0:00:00]} 42. Qf5 {[%emt 0:00:00]} Bd4 {[%emt 0:00:00]} 43. e5 {[%emt 0:00:00]} Bc5 {[%emt 0:00:00]} 44. Qf6+ {[%emt 0:00:00]} Kd7 {[%emt 0:00:00]} 45. a4 {[%emt 0:00:00]} Bb4 {[%emt 0:00:00]} 46. Qf7+ {[%emt 0:00:00]} Kc8 {[%emt 0:00:00]} 47. Qc4+ {[%emt 0:00:00]} Bc5 {[%emt 0:00:00]} 48. a5 {[%emt 0:00:00]} Kd7 {[%emt 0:00:00]} 49. Qf7+ {[%emt 0:00:00]} Kd8 {[%emt 0:00:00]} 50. b6 {[%emt 0:00:00]} Qc1 {[%emt 0:00:00]} 51. e6 {[%emt 0:00:00]} Qd1 {[%emt 0:00:00]} 52. Qc7+ {[%emt 0:00:00]} Ke8 {[%emt 0:00:00]} 53. Qc8+ {[%emt 0:00:00]} 1-0

[Event "AUT-ch 2018"]
[Site "Vienna"]
[Date "2018.07.28"]
[Round "8"]
[White "Schwabeneder, Florian"]
[Black "Sandhoefner, Florian"]
[Result "1-0"]
[ECO "D02"]
[WhiteElo "2431"]
[BlackElo "2327"]
[Annotator "NA"]
[PlyCount "83"]
[EventDate "2018.07.22"]
[EventType "swiss"]
[EventCountry "AUT"]
[SourceTitle "playchess.com"]
[Source "ChessBase"]
[SourceQuality "1"]
[TimeControl "40/5400+30:1800+30"]

1. d4 {[%emt 0:00:00]} d5 {[%emt 0:00:01]} 2. Nf3 {[%emt 0:00:00]} Nf6 {[%emt 0:00:01]} 3. c4 {[%emt 0:00:05]} c6 {[%emt 0:00:02]} 4. Qb3 {[%emt 0:00:13]} dxc4 {[%emt 0:00:07]} 5. Qxc4 {[%emt 0:00:10]} Bf5 {[%emt 0:00:12]} 6. g3 {[%emt 0:00:51]} e6 {[%emt 0:00:16]} 7. Bg2 {[%emt 0:00:10]} Nbd7 {[%emt 0:00:38]} 8. O-O {[%emt 0:00:17]} Be7 {[%emt 0:00:20]} 9. e3 {[%emt 0:04:10]} O-O {[%emt 0:03:13]} 10. Rd1 {[%emt 0:01:43]} h6 {[%emt 0:02:45]} 11. Nc3 {[%emt 0:00:48]} Ne4 {[%emt 0:07:25]} 12. Ne1 {[%emt 0:08:17]} Ndf6 {[%emt 0:05:39]} 13. f3 {[%emt 0:08:47]} Nxc3 {[%emt 0:04:50]} 14. bxc3 {[%emt 0:00:25]} Bh7 {[%emt 0:00:30]} 15. e4 {[%emt 0:01:32]} Qc8 {[%emt 0:00:46]} 16. Be3 {[%emt 0:06:11]} Rd8 {[%emt 0:02:51]} 17. Nd3 {[%emt 0:04:24]} Nd7 {[%emt 0:03:03]} 18. Qb3 {[%emt 0:18:53]} c5 {[%emt 0:05:46]} 19. Nf4 {[%emt 0:00:37]} Nb6 {[%emt 0:02:50]} 20. Bf1 {[%emt 0:04:17]} Qc7 {[%emt 0:04:01]} 21. a4 {[%emt 0:03:15]} Nd7 {[%emt 0:13:18]} 22. Nxe6 {[%emt 0:02:31]} fxe6 {[%emt 0:02:39]} 23. Qxe6+ {[%emt 0:00:06]} Kh8 {[%emt 0:00:10]} 24. Qxe7 {[%emt 0:00:15]} Re8 {[%emt 0:00:09]} 25. Qh4 {[%emt 0:00:57]} cxd4 {[%emt 0:01:11]} 26. Bxd4 {[%emt 0:00:51]} Ne5 {[%emt 0:00:22]} 27. Qf4 {[%emt 0:00:47]} Re7 {[%emt 0:01:49]} 28. Rab1 {[%emt 0:05:02]} Nxf3+ {[%emt 0:02:43]} 29. Qxf3 {[%emt 0:00:21]} Bxe4 {[%emt 0:00:07]} 30. Qh5 {[%emt 0:01:51]} Bxb1 {[%emt 0:00:23]} 31. Rxb1 {[%emt 0:00:11]} Qc6 {[%emt 0:02:03]} 32. Qf5 {[%emt 0:02:44]} Qd7 {[%emt 0:05:08]} 33. Qxd7 {[%emt 0:01:09]} Rxd7 {[%emt 0:00:02]} 34. Bg2 {[%emt 0:00:10]} Rb8 {[%emt 0:00:41]} 35. Bxa7 {[%emt 0:01:02]} Ra8 {[%emt 0:00:01]} 36. Bd4 {[%emt 0:00:11]} Rxa4 {[%emt 0:00:16]} 37. Bxb7 {[%emt 0:00:37]} Re7 {[%emt 0:00:17]} 38. Bd5 {[%emt 0:02:41]} Kh7 {[%emt 0:00:51]} 39. Rb7 {[%emt 0:02:22]} Rxb7 {[%emt 0:02:03]} 40. Bxb7 {[%emt 0:00:07]} Ra1+ {[%emt 0:30:28]} 41. Kg2 {[%emt 0:30:31]} Ra2+ {[%emt 0:00:10]} 42. Bf2 {[%emt 0:00:18]} 1-0

[Event "AUT-ch 2018"]
[Site "Vienna"]
[Date "2018.07.28"]
[Round "8"]
[White "Froewis, Georg"]
[Black "Stanec, Nikolaus"]
[Result "0-1"]
[ECO "E91"]
[WhiteElo "2427"]
[BlackElo "2465"]
[Annotator "ChessBase"]
[PlyCount "68"]
[EventDate "2018.07.22"]
[EventType "swiss"]
[EventCountry "AUT"]
[SourceTitle "playchess.com"]
[Source "ChessBase"]
[SourceQuality "1"]
[TimeControl "40/5400+30:1800+30"]

1. Nf3 {[%emt 0:00:00]} Nf6 {[%emt 0:00:10]} 2. c4 {[%emt 0:00:00]} d6 {[%emt 0:00:26]} 3. d4 {[%emt 0:00:00]} g6 {[%emt 0:01:34]} 4. Nc3 {[%emt 0:00:00]} Bg7 {[%emt 0:00:04]} 5. e4 {[%emt 0:00:00]} O-O {[%emt 0:00:09]} 6. Be2 {[%emt 0:00:03]} c5 {[%emt 0:01:29]} 7. O-O {[%emt 0:00:16]} cxd4 {[%emt 0:00:57]} 8. Nxd4 {[%emt 0:00:05]} Nc6 {[%emt 0:00:05]} 9. Be3 {[%emt 0:00:05]} Bd7 {[%emt 0:00:40]} 10. Nc2 {[%emt 0:00:09]} Rc8 {[%emt 0:03:01]} 11. f3 {[%emt 0:00:49]} Be6 {[%emt 0:06:02]} 12. Qd2 {[%emt 0:09:05]} Nd7 {[%emt 0:01:24]} 13. Rac1 {[%emt 0:18:29]} a6 {[%emt 0:05:54]} 14. Na3 {[%emt 0:03:12]} Qa5 {[%emt 0:01:36]} 15. Rfd1 {[%emt 0:04:43]} f5 {[%emt 0:05:08]} 16. exf5 {[%emt 0:14:19]} Qxf5 {[%emt 0:01:52]} 17. Ne4 {[%emt 0:00:18]} Kh8 {[%emt 0:04:07]} 18. b3 {[%emt 0:06:00]} Nf6 {[%emt 0:06:25]} 19. Ng5 {[%emt 0:08:35]} Bg8 {[%emt 0:01:16]} 20. c5 {[%emt 0:02:11]} d5 {[%emt 0:05:22]} 21. Bd3 {[%emt 0:08:51]} Qd7 {[%emt 0:01:48]} 22. Qe1 {[%emt 0:00:06]} e5 {[%emt 0:03:31]} 23. Qh4 {[%emt 0:01:48]} Qe8 {[%emt 0:00:25]} 24. b4 {[%emt 0:03:26]} Ne7 {[%emt 0:01:41]} 25. b5 {[%emt 0:03:16]} Nf5 {[%emt 0:08:41]} 26. Bxf5 {[%emt 0:00:13]} gxf5 {[%emt 0:00:06]} 27. f4 {[%emt 0:04:38]} Ng4 {[%emt 0:13:11]} 28. Bf2 {[%emt 0:03:59]} Nxf2 {[%emt 0:00:55]} 29. Qxf2 {[%emt 0:00:19]} e4 {[%emt 0:00:28]} 30. bxa6 {[%emt 0:02:06]} bxa6 {[%emt 0:00:14]} 31. Nc2 {[%emt 0:00:38]} h6 {[%emt 0:00:37]} 32. Nh3 {[%emt 0:00:20]} Qe7 {[%emt 0:01:18]} 33. Ne3 {[%emt 0:01:48]} d4 {[%emt 0:02:27]} 34. Nc4 {[%emt 0:01:58]} Qxc5 {[%emt 0:02:45]} 0-1